bitfinex/quotes_ETHUSD_20251012
["timestamp","ask_amount","ask_price","bid_price","bid_amount"]
[1760261242251,5.36043971,3827.4,3827.3,0.00109836]
[1760261242775,3.44043971,3827.4,3827.3,0.00109836]
[1760261245778,3.85025513,3827.4,3827.3,0.00109836]
[1760261249855,3.85025513,3827.4,3827.3,0.00015392]
[1760261250892,0.40981542,3827.4,3827.3,0.00015392]
[1760261251198,2.61228965,3828.1,3827.3,2.61291086]
[1760261251359,0.1349,3827.8,3827.3,2.61291086]
[1760261251689,2.61234197,3828.0,3827.4,2.6127301]
[1760261251690,0.1349,3827.7,3827.4,2.6127301]
[1760261252016,0.1349,3827.7,3827.3,0.00015392]
[1760261252017,0.1349,3827.7,3827.3,2.61294601]
[1760261252195,0.1349,3827.6,3827.3,2.61294601]
[1760261252357,0.1349,3827.6,3827.4,2.61272221]
[1760261252994,0.6336,3827.9,3827.4,2.61272221]
[1760261253299,0.1349,3827.9,3827.5,2.61261348]
[1760261253504,0.1349,3827.9,3827.5,2.61266388]
[1760261253659,0.1349,3828.3,3827.6,0.4528]
[1760261253860,0.1349,3828.3,3827.4,0.52257638]
[1760261254087,0.1304,3827.9,3827.8,2.61246669]
[1760261254290,0.1304,3827.9,3827.8,3.06526669]
[1760261254892,0.02393291,3828.5,3828.4,2.61205725]
[1760261255091,0.02393291,3828.5,3827.7,1.92]
[1760261255092,0.1304,3828.4,3827.7,2.0504]
[1760261255294,0.1304,3828.4,3828.1,2.61224786]
[1760261255464,0.1304,3828.4,3828.2,2.6121633]
[1760261255659,0.1304,3828.4,3828.3,2.61212548]
[1760261256396,0.1304,3828.4,3828.2,2.6121838]
[1760261256800,0.1304,3828.4,3828.3,2.61212548]
[1760261257108,0.1304,3828.4,3828.3,2.87333803]
[1760261257407,0.1304,3828.4,3828.3,3.32613803]
[1760261257606,0.1304,3828.4,3827.8,2.61246669]
[1760261257806,0.1304,3828.4,3828.3,2.61212548]
[1760261258374,0.1314,3828.4,3828.3,2.61212548]
[1760261258812,0.001,3828.4,3828.3,3.06492548]
[1760261260591,0.001,3828.4,3828.3,2.61212548]
[1760261261311,0.001,3828.4,3828.2,14.5]
[1760261261500,0.1314,3828.4,3828.2,14.5]
[1760261261819,0.1314,3828.4,3828.2,2.61217416]
[1760261262015,0.1314,3828.4,3828.3,2.61212548]
[1760261262213,0.001,3828.4,3827.5,0.4528]
[1760261262414,0.1397,3828.4,3827.6,1.92]
[1760261262716,0.1397,3828.4,3827.9,2.61239179]
[1760261263295,0.1397,3828.4,3828.0,2.6123215]
[1760261264000,0.001,3828.4,3828.1,2.61221194]
[1760261264546,0.001,3828.4,3828.2,2.61219372]
[1760261264698,0.001,3828.4,3828.1,1.04418968]
[1760261264699,0.001,3828.4,3828.1,3.18213785]
[1760261264894,0.001,3828.4,3827.9,2.61239844]
[1760261265092,0.1387,3828.3,3827.9,2.61239844]
[1760261265314,0.1387,3828.3,3827.8,2.61245121]
[1760261265494,2.75084593,3828.3,3827.4,2.61267333]
[1760261265709,0.1387,3828.3,3827.7,2.61252743]
[1760261265899,2.61238294,3828.0,3827.3,0.00015392]
[1760261266294,0.1387,3827.9,3827.3,0.00015392]
[1760261266527,2.75112457,3827.9,3827.3,0.00015392]
[1760261266830,0.001,3828.4,3827.5,2.61267145]
[1760261267129,0.001,3828.4,3828.3,2.61212548]
[1760261268738,0.001,3828.4,3828.0,2.61231975]
[1760261268739,0.001,3828.4,3828.2,2.61218686]
[1760261269132,0.001,3828.4,3828.0,14.5]
[1760261269333,0.001,3828.4,3827.7,0.4743]
[1760261269334,2.75088688,3828.3,3827.5,4.53261109]
[1760261269523,2.75088688,3828.3,3827.6,2.61254796]
[1760261269721,0.67508863,3828.3,3827.7,2.61252582]
[1760261270125,3.28723178,3828.3,3827.6,2.61258537]
[1760261270321,0.67508863,3828.3,3827.6,2.61254879]
[1760261270634,0.67508863,3828.3,3827.4,2.61268425]
[1760261270635,2.7509165,3828.2,3827.4,2.61268425]
[1760261270850,0.6336,3828.1,3827.5,2.61262361]
[1760261271057,0.6336,3828.1,3827.4,0.4743]
[1760261271351,0.6336,3828.2,3827.6,2.612554]
[1760261271752,0.53638863,3828.3,3827.4,0.4743]
[1760261272054,0.1387,3828.2,3827.6,2.61254103]
[1760261272433,0.6346,3828.4,3827.7,2.61251899]
[1760261272632,0.6346,3828.4,3827.5,2.61265903]
[1760261272633,0.1304,3827.6,3827.5,2.61265903]
[1760261274327,0.1304,3827.6,3827.3,2.6129061]
[1760261274328,0.1304,3827.6,3827.3,0.00015392]
[1760261274526,0.1387,3828.1,3827.4,2.61272638]
[1760261274527,3.2459431,3828.0,3827.4,2.61272638]
[1760261274728,1.23328387,3828.0,3827.4,2.61272638]
[1760261275046,0.6336,3828.2,3827.7,2.61253418]
[1760261275356,2.61220501,3828.2,3827.5,2.61261015]
[1760261275525,0.1304,3827.6,3827.3,0.00015392]
[1760261275731,0.1304,3827.6,3827.3,2.61295797]
[1760261275930,0.1304,3827.6,3827.4,2.61273623]
[1760261276644,0.1304,3827.6,3827.5,2.61267145]
[1760261276855,0.1304,3827.6,3827.5,3.07927145]
[1760261278374,0.1304,3827.6,3827.5,3.64848911]
[1760261278675,0.001,3828.1,3828.0,2.61233019]
[1760261279576,0.001,3828.1,3828.0,3.07893019]
[1760261280852,0.001,3828.1,3828.0,2.61233019]
[1760261281378,0.001,3828.1,3828.0,3.07893019]
[1760261281975,0.001,3828.1,3828.0,3.64806417]
[1760261282371,0.001,3828.1,3828.0,3.18146417]
[1760261282749,0.001,3828.1,3828.0,3.64806417]
[1760261286091,0.001,3828.1,3828.0,3.18146417]
[1760261286254,0.001,3828.1,3828.0,2.61233019]
[1760261286959,0.001,3828.1,3828.0,3.07893019]
[1760261288656,0.001,3828.1,3828.0,3.05499728]
[1760261289091,0.001,3828.1,3828.0,4.97499728]
[1760261289859,0.001,3828.1,3828.0,4.50839728]
[1760261290389,0.001,3828.1,3828.0,4.97499728]
[1760261291791,0.001,3828.1,3827.9,0.1304]
[1760261291973,0.001,3828.1,3827.8,2.61244252]
[1760261293419,0.1304,3828.0,3827.8,2.61246295]
[1760261294624,0.1304,3828.0,3827.4,0.1304]
[1760261294625,0.1304,3828.0,3827.5,2.61266251]
[1760261294786,0.1387,3827.9,3827.5,2.61266251]
[1760261294991,0.1304,3828.0,3827.4,2.74312385]
[1760261295296,0.1304,3828.0,3827.7,2.61253313]
[1760261295821,0.1304,3828.0,3827.5,2.61265021]
[1760261296018,0.28822993,3828.0,3827.3,0.00015392]
[1760261296218,0.1304,3827.6,3827.3,2.61291011]
[1760261296586,0.1304,3827.6,3827.4,2.61272703]
[1760261296822,0.1304,3827.6,3827.3,0.00015392]
[1760261297135,0.1304,3827.6,3827.3,2.61295247]
[1760261297317,0.1304,3827.6,3827.4,2.61271348]
[1760261297920,0.1304,3827.6,3827.3,2.61294501]
[1760261298420,2.61241639,3827.9,3827.3,0.00015392]
[1760261298626,0.1304,3827.4,3827.3,0.00015392]
[1760261299694,0.2691,3827.4,3827.3,0.00015392]
[1760261301626,0.1304,3827.4,3827.3,0.00015392]
[1760261302538,0.2691,3827.4,3827.3,0.00015392]
[1760261304142,0.1304,3827.4,3827.3,0.00015392]
[1760261305029,0.2691,3827.4,3827.3,0.00015392]
[1760261305933,0.1304,3827.4,3827.3,2.6129619]
[1760261306329,0.1304,3827.4,3827.3,0.00015392]
[1760261306740,0.2691,3827.4,3827.3,0.00015392]
[1760261308762,0.1304,3827.4,3827.3,0.00015392]
[1760261309076,0.1304,3827.4,3827.3,2.6129619]
[1760261309360,0.1304,3827.4,3827.3,3.0859619]
[1760261310463,0.001,3828.1,3827.5,2.61260552]
[1760261310639,0.1304,3827.6,3827.3,0.47315392]
[1760261310840,0.1304,3827.6,3827.3,0.00015392]
[1760261311257,0.2691,3827.6,3827.3,0.00015392]
[1760261311672,0.2691,3827.6,3827.3,2.61292706]
[1760261313247,0.1387,3827.8,3827.3,0.00015392]
[1760261313574,0.27521111,3827.7,3827.3,2.61296174]
[1760261313770,0.1387,3827.6,3827.3,0.00015392]
[1760261314877,0.1387,3827.5,3827.3,0.00015392]
[1760261317545,2.61254163,3827.7,3827.3,0.00015392]
[1760261317854,0.1387,3827.5,3827.3,0.00015392]
[1760261318378,0.1387,3827.6,3827.3,0.00015392]
[1760261318585,0.1387,3827.4,3827.3,0.00015392]
[1760261319189,2.75143971,3827.4,3827.3,0.00015392]
[1760261319671,3.38503971,3827.4,3827.3,0.00015392]
[1760261320358,5.30503971,3827.4,3827.3,0.00015392]
[1760261321344,3.38503971,3827.4,3827.3,0.00015392]
[1760261321773,0.1387,3827.4,3827.3,0.00015392]
[1760261322739,2.75143971,3827.4,3827.3,0.00015392]
[1760261323075,3.92144412,3827.4,3827.3,0.00015392]
[1760261326078,1.30870441,3827.4,3827.3,0.00015392]
[1760261326268,3.92144412,3827.4,3827.3,0.00015392]
[1760261327096,1.30870441,3827.4,3827.3,0.00015392]
[1760261327293,0.6336,3827.7,3827.3,0.00015392]
[1760261327498,2.61260973,3827.6,3827.3,0.00015392]
[1760261327805,2.75130973,3827.6,3827.3,0.00015392]
[1760261327988,2.61260973,3827.6,3827.3,0.00015392]
[1760261328196,0.1387,3827.5,3827.3,0.00015392]
[1760261328607,2.75137452,3827.5,3827.3,0.00015392]
[1760261328808,3.39209826,3827.5,3827.3,0.00015392]
[1760261329513,2.75143971,3827.4,3827.3,0.00015392]
[1760261330305,3.38503971,3827.4,3827.3,0.00015392]
[1760261334313,2.61268507,3827.5,3827.3,0.00015392]
[1760261334690,2.75138507,3827.5,3827.3,0.00015392]
[1760261335103,2.75143971,3827.4,3827.3,0.00015392]
[1760261335715,3.28784401,3827.4,3827.3,0.00015392]
[1760261336801,3.92144401,3827.4,3827.3,0.00015392]
[1760261336997,8.58425913,3827.4,3827.3,0.00015392]
[1760261338092,10.50425913,3827.4,3827.3,0.00015392]
[1760261340700,3.24681765,3826.7,3826.6,0.002]
[1760261340896,7.90963277,3826.7,3826.6,0.002]
[1760261341096,8.04833277,3826.7,3826.6,0.002]
[1760261341514,3.38551765,3826.7,3826.6,0.002]
[1760261343705,0.6336,3826.7,3826.6,0.002]
[1760261345244,2.75171731,3827.0,3826.6,4.66481512]
[1760261345245,0.1387,3827.0,3826.6,4.66481512]
[1760261345423,0.1387,3827.3,3826.6,0.002]
[1760261345626,0.1387,3827.6,3826.7,7.27600967]
[1760261345810,0.1304,3826.8,3826.7,4.66281512]
[1760261346047,0.1387,3826.8,3826.6,0.002]
[1760261346245,0.1387,3827.3,3826.6,0.002]
[1760261346568,2.75155757,3827.3,3826.6,2.61528458]
[1760261346771,0.1387,3827.3,3826.6,2.61528458]
[1760261347070,2.75152076,3827.3,3826.6,2.61528458]
[1760261348237,0.1387,3827.6,3826.6,6.10876687]
[1760261348552,2.61269183,3827.5,3826.7,7.27596663]
[1760261348875,2.61274447,3827.4,3826.7,7.27602685]
[1760261349071,2.61285239,3827.3,3826.6,2.61526676]
[1760261349801,0.6336,3827.3,3826.7,2.61319936]
[1760261349946,0.1387,3827.4,3826.9,2.61306682]
[1760261350142,2.75134555,3827.6,3826.9,2.61306682]
[1760261350556,2.61267295,3827.5,3826.9,2.61306682]
[1760261350962,2.75132754,3827.6,3826.9,2.61306682]
[1760261351287,2.61254632,3827.7,3827.0,2.61300063]
[1760261351493,2.61252568,3827.8,3827.1,2.61291831]
[1760261352265,2.61254163,3827.7,3827.0,2.61298568]
[1760261352480,2.61254163,3827.7,3827.1,2.61294265]
[1760261352793,2.61248488,3827.8,3827.2,5.02756638]
[1760261352944,2.6125363,3827.7,3827.2,5.02756638]
[1760261353144,2.61222251,3828.2,3827.3,2.61280798]
[1760261353443,0.6336,3828.4,3827.2,7.27567182]
[1760261353676,2.61247256,3827.8,3827.2,7.27567182]
[1760261354109,2.61247256,3827.8,3827.2,4.66281512]
[1760261355010,2.61247256,3827.8,3827.2,2.6128758]
[1760261356128,0.2297,3829.6,3827.7,4.66281512]
[1760261356313,0.2297,3829.6,3828.8,4.66281512]
[1760261356810,0.1314,3828.9,3828.8,4.66281512]
[1760261356982,0.1314,3828.9,3828.8,7.27459949]
[1760261357182,0.1314,3828.9,3828.8,2.61178437]
[1760261357899,0.1314,3828.9,3828.7,2.61184544]
[1760261358123,0.1314,3828.9,3828.8,2.61178437]
[1760261360841,0.1314,3828.9,3828.8,3.06638437]
[1760261360990,0.001,3828.9,3828.8,4.98638437]
[1760261366430,0.001,3828.9,3828.8,5.11678437]
[1760261375268,0.001,3828.9,3828.8,2.61178437]
[1760261375449,0.001,3828.9,3828.3,2.83768918]
[1760261375450,0.001,3828.9,3828.5,0.1304]
[1760261375657,0.001,3828.9,3828.7,2.61178954]
[1760261375658,0.1304,3828.8,3828.7,2.61178954]
[1760261376261,0.1304,3828.8,3828.4,2.61198998]
[1760261376631,0.1304,3828.8,3828.7,2.61185258]
[1760261377571,0.1304,3828.8,3828.1,0.1304]
[1760261377860,0.1304,3828.8,3827.8,2.61245366]
[1760261377861,0.1304,3828.3,3828.2,2.61219372]
[1760261381160,0.1304,3828.3,3828.2,3.08069372]
[1760261382161,0.001,3828.9,3828.8,2.61178437]
[1760261382745,0.1314,3828.9,3828.8,2.61178437]
[1760261393096,0.001,3828.9,3828.8,3.05818437]
[1760261393902,0.001,3828.9,3828.8,3.18858437]
[1760261394665,0.001,3828.9,3828.8,2.74218437]
[1760261394871,0.001,3828.9,3828.8,2.61178437]
[1760261395174,0.001,3828.9,3828.8,3.06208437]
[1760261396314,0.001,3828.9,3828.8,2.61178437]
[1760261397013,0.001,3828.9,3828.8,2.61378437]
[1760261397814,0.001,3828.9,3828.8,0.002]
[1760261397815,0.1,3828.9,3828.8,0.002]
[1760261399216,0.37136494,3828.9,3828.8,0.002]
[1760261401013,2.71171615,3828.9,3828.8,0.002]
[1760261401606,0.001,3828.9,3828.8,0.002]
[1760261402125,0.1,3828.9,3828.8,0.002]
[1760261402310,2.71171615,3828.9,3828.8,0.002]
[1760261403510,0.1,3828.9,3828.8,0.002]
[1760261403715,0.69587878,3828.9,3828.8,0.002]
[1760261404237,0.001,3828.9,3828.8,0.002]
[1760261404599,0.001,3828.9,3828.8,2.61378437]
[1760261404806,0.1314,3828.9,3828.8,2.61378437]
[1760261405729,0.001,3828.9,3828.8,3.06408437]
[1760261406529,0.1,3828.9,3828.8,0.002]
[1760261406838,2.71171615,3828.9,3828.8,0.002]
[1760261407130,5.797846,3828.9,3828.8,0.002]
[1760261409055,6.20752021,3828.9,3828.8,0.002]
[1760261411850,5.797846,3828.9,3828.8,0.002]
[1760261414217,5.164246,3828.9,3828.8,0.002]
[1760261414636,3.244246,3828.9,3828.8,0.002]
[1760261414830,0.001,3828.9,3828.8,0.002]
[1760261415140,0.001,3828.9,3828.8,2.61378437]
[1760261415326,0.001,3828.9,3828.8,3.06408437]
[1760261415507,0.1314,3828.9,3828.8,2.61378437]
[1760261415909,0.001,3828.9,3828.8,3.06408437]
[1760261416143,0.001,3828.9,3828.8,3.63168385]
[1760261416704,0.001,3828.9,3828.8,3.18138385]
[1760261416904,0.001,3828.9,3828.8,3.63168385]
[1760261421009,0.001,3828.9,3828.8,5.55168385]
[1760261422554,0.001,3828.9,3828.8,5.68208385]
[1760261427868,0.001,3828.9,3828.8,5.55168385]
[1760261429942,0.001,3828.9,3828.8,5.10138385]
[1760261430148,0.001,3828.9,3828.8,4.53378437]
[1760261430550,0.001,3828.9,3828.8,4.98858437]
[1760261431182,0.001,3828.9,3828.8,4.53378437]
[1760261431481,0.001,3828.9,3828.8,4.98858437]
[1760261433466,0.001,3828.9,3828.8,4.53378437]
[1760261433779,0.001,3828.9,3828.8,2.61378437]
[1760261436076,0.001,3828.9,3828.8,3.59114934]
[1760261436299,0.001,3828.9,3828.8,5.51114934]
[1760261437387,0.001,3828.9,3828.8,5.05634934]
[1760261437580,0.001,3828.9,3828.8,4.53378437]
[1760261437760,0.001,3828.9,3828.8,2.61378437]
[1760261437963,0.1314,3828.9,3828.8,2.61378437]
[1760261438274,0.1314,3828.9,3828.8,0.002]
[1760261438474,0.1314,3828.9,3828.8,2.61378437]
[1760261439393,0.1314,3828.9,3828.8,3.5911541]
[1760261439394,0.001,3828.9,3828.8,3.5911541]
[1760261439596,0.001,3828.9,3828.8,20.0471915]
[1760261443290,0.001,3828.9,3828.8,5.6415541]
[1760261445396,0.001,3828.9,3828.8,4.66418437]
[1760261445598,0.001,3828.9,3828.8,4.53151801]
[1760261446572,0.001,3828.9,3828.8,19.37915541]
[1760261446769,0.001,3828.9,3828.8,19.50955541]
[1760261455018,1e-08,3829.2,3829.1,2.61157974]
[1760261455214,1e-08,3829.2,3829.1,5.07182487]
[1760261455523,1e-08,3829.2,3829.1,5.64652487]
[1760261456891,1e-08,3829.2,3829.1,7.56652487]
[1760261457097,0.001,3829.3,3829.2,4.53151154]
[1760261457395,0.001,3829.3,3829.2,6.4467868]
[1760261463569,0.001,3829.3,3829.2,11.10151032]
[1760261466812,0.001,3829.7,3829.4,9.18609867]
[1760261467162,0.001,3829.7,3829.4,9.76079867]
[1760261467590,0.001,3829.7,3829.4,5.10607515]
[1760261467898,0.001,3829.7,3829.4,6.75156167]
[1760261469000,0.001,3829.7,3829.4,11.40628519]
[1760261469769,0.001,3829.7,3829.4,6.75156167]
[1760261470411,0.001,3829.7,3829.4,11.40628519]
[1760261470590,0.001,3829.7,3829.6,2.61123877]
[1760261470770,0.001,3829.7,3829.6,8.85971469]
[1760261470973,0.001,3829.7,3829.6,9.43441469]
[1760261471409,0.001,3830.1,3830.0,2.61096605]
[1760261471711,0.001,3830.1,3830.0,13.84041309]
[1760261471904,0.001,3830.1,3830.0,14.41511309]
[1760261472077,0.001,3830.1,3830.0,15.34548843]
[1760261472274,0.001,3830.1,3830.0,15.21508843]
[1760261472480,0.001,3830.1,3830.0,15.34548843]
[1760261472811,0.001,3831.2,3831.1,2.61021638]
[1760261473110,0.001,3831.2,3831.1,7.2649399]
[1760261473406,0.001,3831.2,3831.1,7.7092399]
[1760261474524,0.001,3831.2,3831.1,11.10021516]
[1760261475180,0.001,3831.2,3831.1,4.53021638]
[1760261475511,0.001,3831.2,3831.1,9.1849399]
[1760261475713,0.001,3831.2,3831.1,1.92]
[1760261475914,0.001,3831.2,3831.1,9.1849399]
[1760261476216,0.001,3831.2,3831.1,4.97451638]
[1760261476417,0.001,3831.2,3831.1,6.9380122]
[1760261479523,0.001,3831.6,3831.5,2.60994388]
[1760261479687,0.001,3831.6,3831.5,9.3150674]
[1760261479887,0.001,3831.6,3831.5,9.7593674]
[1760261480226,0.001,3831.6,3831.5,10.91233336]
[1760261482413,0.001,3831.6,3831.5,10.33763336]
[1760261482614,0.001,3831.6,3831.5,9.1846674]
[1760261482926,0.001,3831.6,3831.5,7.7089674]
[1760261484297,0.001,3831.6,3831.5,2.60994388]
[1760261484527,0.001,3831.6,3831.4,2.60994648]
[1760261484739,0.001,3831.6,3831.2,4.65472352]
[1760261484940,0.001,3831.6,3831.0,2.0504]
[1760261485239,2.61013775,3831.3,3830.6,4.65472352]
[1760261485456,0.1304,3830.9,3830.2,0.1304]
[1760261485741,0.1304,3830.2,3829.4,5.25682352]
[1760261485923,2.61071277,3830.4,3829.6,2.61123449]
[1760261486104,0.1304,3830.0,3829.7,2.61114846]
[1760261486298,2.61081073,3830.3,3829.4,2.61131371]
[1760261486628,0.1304,3829.8,3829.4,2.61137515]
[1760261486807,0.1304,3829.8,3829.5,2.61130685]
[1760261487203,0.1304,3829.8,3829.6,4.65472352]
[1760261487409,0.1304,3829.8,3829.6,2.61123302]
[1760261487738,0.1304,3829.8,3829.7,2.61117058]
[1760261487903,0.1304,3830.6,3829.8,1.92]
[1760261488104,0.1304,3830.6,3830.3,2.61075097]
[1760261488299,0.1304,3830.6,3830.2,2.61081092]
[1760261488527,0.1304,3830.6,3829.9,0.4717]
[1760261488732,0.1304,3830.6,3830.1,2.61088416]
[1760261488930,0.1304,3830.1,3829.8,1.92]
[1760261489131,0.1304,3830.1,3830.0,2.61096605]
[1760261489441,0.099,3831.4,3830.5,2.61057471]
[1760261489613,0.1304,3830.5,3830.4,2.61067835]
[1760261490008,0.1304,3830.5,3830.4,3.08237835]
[1760261492034,0.1304,3830.5,3830.4,2.61067835]
[1760261492804,0.1304,3830.5,3830.2,2.61078285]
[1760261493117,0.1304,3830.5,3830.3,2.61073843]
[1760261493319,2.70939631,3830.9,3829.9,2.61097666]
[1760261493619,0.1304,3830.3,3830.2,2.61082972]
[1760261494014,0.1304,3830.3,3829.6,0.1304]
[1760261494218,0.1304,3830.3,3829.6,0.6021]
[1760261494517,0.1304,3830.3,3829.9,2.61098598]
[1760261494720,1.92,3831.5,3829.9,2.61098598]
[1760261494721,0.1304,3830.0,3829.9,2.61098598]
[1760261495329,0.1304,3830.0,3829.9,3.08268598]
[1760261495639,0.1304,3830.4,3830.3,2.61076155]
[1760261495825,0.1304,3830.4,3830.3,3.08246155]
[1760261496337,0.1304,3830.4,3830.0,0.002]
[1760261496967,0.1304,3830.4,3830.2,2.61078]
[1760261498036,0.1304,3830.4,3830.3,2.61076155]
[1760261498937,0.1304,3830.5,3830.4,2.61063125]
[1760261499249,0.1304,3830.5,3830.4,3.08233125]
[1760261500635,0.001,3831.6,3830.4,5.38175066]
[1760261500834,0.001,3831.6,3831.1,2.61020136]
[1760261502267,0.1304,3831.1,3831.0,2.61026004]
[1760261502437,0.099,3831.5,3831.0,2.61026004]
[1760261502638,0.1304,3831.0,3830.8,2.61042079]
[1760261502838,0.1304,3831.0,3830.9,2.61035265]
[1760261503772,0.001,3831.6,3831.2,2.61008238]
[1760261503990,0.001,3831.6,3831.5,2.60994388]
[1760261504479,0.001,3831.6,3831.5,3.06664388]
[1760261504675,0.001,3831.6,3831.5,5.03824867]
[1760261505999,0.001,3831.6,3831.5,4.58154867]
[1760261506186,0.001,3831.6,3831.5,3.06664388]
[1760261506988,0.001,3831.6,3831.5,4.98664388]
[1760261507157,0.001,3831.6,3831.5,5.09129962]
[1760261509368,0.001,3831.6,3831.5,4.98664388]
[1760261511804,0.001,3831.6,3831.5,2.60994388]
[1760261513914,0.001,3831.6,3831.5,3.63431086]
[1760261516915,0.001,3831.6,3831.5,3.76571086]
[1760261525522,0.001,3831.6,3831.5,4.39931086]
[1760261526627,0.001,3831.6,3831.5,3.89611086]
[1760261528161,0.001,3831.6,3831.0,0.4598]
[1760261528363,0.001,3831.6,3831.5,2.60994388]
[1760261528858,0.001,3831.6,3831.5,3.06974388]
[1760261529660,0.001,3831.6,3831.5,3.20014388]
[1760261529865,0.001,3831.6,3830.9,0.1314]
[1760261529866,0.001,3831.6,3831.2,0.4598]
[1760261530077,0.001,3831.6,3831.2,2.61008971]
[1760261530770,0.001,3831.6,3831.1,0.002]
[1760261530967,0.1304,3831.2,3831.1,0.002]
[1760261531766,0.001,3831.6,3831.1,0.4618]
[1760261532068,0.001,3831.6,3831.1,0.002]
[1760261532267,0.1006,3831.5,3831.1,0.002]
[1760261532436,0.1006,3831.4,3831.1,0.002]
[1760261532836,0.001,3831.6,3831.1,0.4618]
[1760261533034,0.001,3831.6,3831.1,0.002]
[1760261533246,0.001,3831.6,3831.1,2.61220757]
[1760261533466,0.001,3831.6,3831.2,0.4598]
[1760261533640,0.001,3831.6,3831.1,2.61220757]
[1760261535702,0.001,3831.6,3831.2,0.4598]
[1760261535900,0.001,3831.6,3831.5,2.60994388]
[1760261536304,0.001,3831.6,3831.5,3.06974388]
[1760261536972,0.001,3831.6,3831.1,0.78703102]
[1760261537273,0.001,3831.6,3831.2,2.610133]
[1760261537481,0.001,3831.6,3831.1,2.61219957]
[1760261537701,0.001,3831.6,3831.2,2.61014071]
[1760261539314,0.001,3831.6,3831.3,2.61007327]
[1760261539810,0.001,3831.6,3831.1,0.002]
[1760261540108,0.0992,3831.5,3831.1,0.002]
[1760261540330,0.46300567,3831.4,3831.1,0.002]
[1760261540716,1.92,3831.2,3831.1,0.002]
[1760261540880,2.61014825,3831.2,3831.1,0.002]
[1760261541083,4.62934825,3831.2,3831.1,0.002]
[1760261543406,1.92,3831.2,3831.1,0.002]
[1760261544827,2.47220151,3831.2,3831.1,0.002]
[1760261545027,4.62934825,3831.2,3831.1,0.002]
[1760261547298,1.92,3831.2,3831.1,0.002]
[1760261547704,1.921,3831.2,3831.1,0.002]
[1760261549600,0.001,3831.2,3831.1,3.06811638]
[1760261550936,0.001,3831.2,3831.1,0.4579]
[1760261551114,0.001,3831.2,3831.1,0.002]
[1760261551616,0.001,3831.2,3831.1,3.06811638]
[1760261551931,0.001,3831.2,3831.1,0.002]
[1760261552808,0.1002,3831.2,3831.1,0.002]
[1760261553215,0.001,3831.2,3831.1,0.002]
[1760261554807,0.1002,3831.2,3831.1,0.002]
[1760261555014,2.71034825,3831.2,3831.1,0.002]
[1760261555534,2.0202,3831.2,3831.1,0.002]
[1760261555734,0.1002,3831.2,3831.1,0.002]
[1760261556036,0.37122881,3831.2,3831.1,0.002]
[1760261556439,0.27202881,3831.2,3831.1,0.002]
[1760261556741,0.001,3831.2,3831.1,0.002]
[1760261558244,0.001,3831.2,3831.1,2.61221638]
[1760261558447,0.001,3831.2,3831.1,3.06811638]
[1760261559619,0.001,3831.2,3831.1,0.002]
[1760261560423,0.001,3831.2,3831.1,2.61221638]
[1760261560625,0.001,3831.2,3831.1,3.1477125]
[1760261561339,0.1304,3831.4,3831.1,3.06811638]
[1760261561524,0.001,3832.0,3831.9,4.52967144]
[1760261562048,0.001,3832.0,3831.9,5.11597144]
[1760261562352,0.001,3832.0,3831.9,5.24637144]
[1760261562719,0.001,3832.0,3831.9,6.03198423]
[1760261563955,0.001,3832.0,3831.9,4.11198423]
[1760261564148,0.001,3832.0,3831.9,0.2608]
[1760261564349,0.001,3832.0,3831.9,0.1304]
[1760261564554,0.001,3832.0,3831.9,2.60967144]
[1760261567430,0.001,3832.0,3831.9,3.04477144]
[1760261567754,0.001,3832.0,3831.8,2.6097284]
[1760261567951,0.001,3832.0,3831.9,2.60967144]
[1760261569565,0.001,3832.0,3831.8,2.60973662]
[1760261569926,0.001,3832.0,3831.9,2.60967144]
[1760261570123,0.001,3832.0,3831.5,2.60994124]
[1760261570379,0.001,3832.0,3831.6,2.60984662]
[1760261570569,0.001,3832.0,3831.7,2.60978446]
[1760261571083,0.1002,3831.9,3831.1,2.61220982]
[1760261571234,0.2219,3831.9,3831.1,2.61220982]
[1760261571435,0.001,3832.0,3831.1,2.61220982]
[1760261571436,0.001,3832.0,3831.1,0.002]
[1760261571709,0.001,3832.0,3831.4,2.60998166]
[1760261572210,0.001,3832.0,3831.6,2.60982661]
[1760261574500,0.001,3832.0,3831.9,2.60967144]
[1760261574803,0.001,3832.0,3831.9,3.04477144]
[1760261577410,0.001,3832.0,3831.9,2.60967144]
[1760261578683,0.001,3832.0,3831.9,3.06117144]
[1760261580390,0.001,3832.0,3831.9,2.60967144]
[1760261580706,0.1,3832.0,3831.1,0.5839]
[1760261581008,0.1304,3831.8,3831.1,0.5839]
[1760261581227,0.1304,3831.8,3831.1,0.83449]
[1760261581404,2.70905507,3831.7,3831.1,0.002]
[1760261581711,0.1304,3831.2,3831.1,0.002]
[1760261581911,0.1304,3831.2,3831.1,2.61221638]
[1760261582469,0.1226,3831.9,3831.3,2.61004087]
[1760261582673,0.1304,3831.4,3831.3,2.61004087]
[1760261582938,0.001,3832.0,3831.8,2.60973023]
[1760261583682,0.001,3832.0,3831.9,2.60967144]
[1760261583910,0.1304,3831.8,3831.6,2.60985289]
[1760261584226,0.1304,3831.8,3831.4,0.002]
[1760261584227,0.2301,3831.8,3831.4,0.002]
[1760261584529,0.1304,3831.6,3831.4,0.002]
[1760261584939,0.0997,3831.5,3831.4,0.002]
[1760261585239,0.57568511,3831.5,3831.4,0.002]
[1760261585467,0.1304,3831.6,3831.4,0.002]
[1760261585586,1.92,3831.8,3831.4,0.002]
[1760261585906,2.60982106,3831.7,3831.4,0.002]
[1760261586099,2.6099045,3831.6,3831.4,0.002]
[1760261586612,0.001,3832.0,3831.4,0.002]
[1760261586613,0.001,3832.0,3831.4,2.61197078]
[1760261586823,0.1304,3831.5,3831.4,2.87336786]